fUST/lending_fUST_20260421
["ID","MTS","AMOUNT","RATE_DAILY","PERIOD"]
[420925367,1776735045532,-173.034751,0.00015616,2]
[420925368,1776735045543,-173.034751,0.00015616,2]
[420925369,1776735045553,-173.034751,0.00015616,2]
[420925370,1776735045562,-173.034743,0.00015616,2]
[420925371,1776735045572,-168.355801,0.00015616,2]
[420925372,1776735045581,-168.355801,0.00015616,2]
[420925373,1776735045591,-168.355801,0.00015616,2]
[420925374,1776735045601,-168.355801,0.00015616,2]
[420925375,1776735045611,-168.355801,0.00015616,2]
[420925376,1776735045620,-168.355801,0.00015616,2]
[420925377,1776735045630,-168.355801,0.00015616,2]
[420925378,1776735045639,-168.355802,0.00015616,2]
[420925379,1776735045649,-151.0,0.00015616,2]
[420925380,1776735045659,-151.0,0.00015616,2]
[420925381,1776735045669,-151.0,0.00015616,2]
[420925382,1776735045678,-151.0,0.00015616,2]
[420925383,1776735045687,-151.0,0.00015616,2]
[420925384,1776735045697,-151.0,0.00015616,2]
[420925385,1776735045708,-152.378627,0.00015616,2]
[420925386,1776735045717,-151.0,0.00015616,2]
[420925387,1776735045727,-151.0,0.00015616,2]
[420925388,1776735045737,-625.914205,0.00015616,2]
[420925389,1776735045746,-625.914205,0.00015616,2]
[420925390,1776735045755,-625.914205,0.00015616,2]
[420925391,1776735045765,-625.914205,0.00015616,2]
[420925392,1776735045774,-625.914205,0.00015616,2]
[420925393,1776735045783,-625.914205,0.00015616,2]
[420925394,1776735045793,-625.914205,0.00015616,2]
[420925395,1776735045802,-625.91419782,0.00015616,2]
[420925396,1776735045812,-648.671084,0.00015616,2]
[420925397,1776735045821,-648.671084,0.00015616,2]
[420925398,1776735045830,-648.671084,0.00015616,2]
[420925399,1776735045843,-648.671084,0.00015616,2]
[420925400,1776735045852,-648.671084,0.00015616,2]
[420925401,1776735045861,-648.671084,0.00015616,2]
[420925402,1776735045871,-648.671084,0.00015616,2]
[420925403,1776735045881,-648.671092,0.00015616,2]
[420925404,1776735045891,-151.0,0.00015616,2]
[420925405,1776735045900,-151.0,0.00015616,2]
[420925406,1776735045910,-151.0,0.00015616,2]
[420925407,1776735045920,-151.0,0.00015616,2]
[420925408,1776735045930,-241.287788,0.00015616,2]
[420925409,1776735045940,-160.0,0.00015616,6]
[420925410,1776735045950,-155.0,0.00015642,2]
[420925411,1776735045959,-3000.0,0.0001568,2]
[420925412,1776735045968,-24082.02689773,0.000157,2]
[420925413,1776735045978,-1083.13562577,0.00015718,2]
[420925414,1776735045988,-200.05695406,0.00015736,2]
[420925415,1776735045998,-821.0,0.0001576,2]
[420925416,1776735046007,-166.83046213,0.00015785,7]
[420925417,1776735046017,-6178.1,0.000158,2]
[420925418,1776735046026,-6831.72881926,0.000158,2]
[420925419,1776735046035,-1973.10958968,0.000158,2]
[420925420,1776735046044,-855.2981407,0.000158,2]
[420925421,1776735046054,-155.0,0.00015856,2]
[420925422,1776735046063,-500.0,0.0001589,2]
[420925423,1776735046072,-500.0,0.0001589,2]
[420925424,1776735046082,-500.0,0.0001589,2]
[420925425,1776735046093,-500.0,0.0001589,2]
[420925426,1776735046102,-500.0,0.0001589,2]
[420925427,1776735046113,-500.0,0.0001589,2]
[420925428,1776735046122,-500.0,0.0001589,2]
[420925429,1776735046132,-550.2,0.0001589,2]
[420925430,1776735046141,-500.0,0.0001589,2]
[420925431,1776735046152,-500.0,0.0001589,2]
[420925432,1776735046161,-555.17,0.0001589,2]
[420925433,1776735046170,-500.0,0.0001589,2]
[420925434,1776735046180,-500.0,0.0001589,2]
[420925435,1776735046189,-500.0,0.0001589,2]
[420925436,1776735046198,-500.0,0.0001589,2]
[420925437,1776735046207,-566.33,0.0001589,2]
[420925438,1776735046216,-500.0,0.0001589,2]
[420925439,1776735046227,-700.65,0.0001589,2]
[420925440,1776735046237,-663.16,0.0001589,2]
[420925441,1776735046246,-500.0,0.0001589,2]
[420925442,1776735046255,-500.0,0.0001589,2]
[420925443,1776735046264,-1395.49,0.0001589,2]
[420925444,1776735046274,-500.0,0.0001589,2]
[420925445,1776735046283,-500.0,0.0001589,2]
[420925446,1776735046293,-915.61,0.0001589,2]
[420925447,1776735046303,-500.0,0.0001589,2]
[420925448,1776735046312,-500.0,0.0001589,2]
[420925449,1776735046320,-500.0,0.0001589,2]
[420925450,1776735046330,-500.0,0.0001589,2]
[420925451,1776735046339,-500.0,0.0001589,2]
[420925452,1776735046351,-500.0,0.0001589,2]
[420925453,1776735046360,-500.0,0.0001589,2]
[420925454,1776735046369,-500.0,0.0001589,2]
[420925455,1776735046379,-500.0,0.0001589,2]
[420925456,1776735046388,-500.0,0.0001589,2]
[420925457,1776735046397,-500.0,0.0001589,2]
[420925458,1776735046406,-1554.06,0.0001589,2]
[420925459,1776735046415,-500.0,0.0001589,2]
[420925460,1776735046425,-500.0,0.0001589,2]
[420925461,1776735046434,-582.68,0.0001589,2]
[420925462,1776735046443,-5611.23,0.0001589,2]
[420925463,1776735046452,-500.0,0.0001589,2]
[420925464,1776735046502,-500.0,0.0001589,2]
[420925465,1776735046512,-303.03496931,0.0001589,2]
[420925466,1776735046521,-8913.81,0.0001589,2]
[420925467,1776735046531,-500.0,0.0001589,2]
[420925468,1776735046540,-500.0,0.0001589,2]
[420925469,1776735046549,-500.0,0.0001589,2]
[420925470,1776735046558,-1546.18,0.0001589,2]
[420925471,1776735046568,-7372.06,0.0001589,2]
[420925472,1776735046578,-6200.61,0.0001589,2]
[420925473,1776735046587,-578.24,0.0001589,2]
[420925474,1776735046598,-585.09,0.0001589,2]
[420925475,1776735046607,-947.65,0.0001589,2]
[420925476,1776735046616,-500.0,0.0001589,2]
[420925477,1776735046625,-500.0,0.0001589,2]
[420925478,1776735046634,-500.0,0.0001589,2]
[420925479,1776735046643,-500.0,0.0001589,2]
[420925481,1776735046652,-500.0,0.0001589,2]
[420925483,1776735046661,-500.0,0.0001589,2]
[420925485,1776735046671,-755.07,0.0001589,2]
[420925487,1776735046680,-500.0,0.0001589,2]
[420925489,1776735046689,-500.0,0.0001589,2]
[420925491,1776735046698,-736.57,0.0001589,2]
[420925493,1776735046707,-1858.23,0.0001589,2]
[420925495,1776735046718,-683.84,0.0001589,2]
[420925497,1776735046727,-3391.67,0.0001589,2]
[420925499,1776735046736,-2845.63,0.0001589,2]
[420925501,1776735046745,-942.56,0.0001589,2]
[420925503,1776735046754,-500.0,0.0001589,2]
[420925505,1776735046763,-500.0,0.0001589,2]
[420925507,1776735046773,-500.0,0.0001589,2]
[420925509,1776735046782,-931.87,0.0001589,2]
[420925511,1776735046792,-1468.68,0.0001589,2]
[420925513,1776735046802,-1208.98,0.0001589,2]
[420925515,1776735046811,-909.52,0.0001589,2]
[420925517,1776735046823,-500.0,0.0001589,2]
[420925519,1776735046832,-634.37,0.0001589,2]
[420925521,1776735046841,-183.16604649,0.0001589,2]
[420925523,1776735046850,-1393.62,0.0001589,2]
[420925525,1776735046859,-1631.25,0.0001589,2]
[420925527,1776735046868,-1034.79,0.0001589,2]
[420925529,1776735046877,-5412.07,0.0001589,2]
[420925531,1776735046886,-1333.09,0.0001589,2]
[420925533,1776735046896,-500.0,0.0001589,2]
[420925535,1776735046905,-1055.62,0.0001589,2]
[420925537,1776735046914,-2738.88,0.0001589,2]
[420925539,1776735046924,-2731.89,0.0001589,2]
[420925541,1776735046933,-460.54719576,0.0001589,2]
[420925543,1776735046942,-2600.62,0.0001589,2]
[420925545,1776735046951,-2254.44,0.0001589,2]
[420925547,1776735046960,-500.0,0.0001589,2]
[420925549,1776735046969,-2088.86,0.0001589,2]
[420925550,1776735046978,-500.0,0.0001589,2]
[420925552,1776735046989,-3845.39,0.0001589,2]
[420925554,1776735046999,-750.4,0.0001589,2]
[420925556,1776735047008,-2809.13,0.0001589,2]
[420925558,1776735047018,-5431.02,0.0001589,2]
[420925560,1776735047027,-500.0,0.0001589,2]
[420925561,1776735047036,-500.0,0.0001589,2]
[420925563,1776735047046,-500.0,0.0001589,2]
[420925565,1776735047055,-844.1,0.0001589,2]
[420925566,1776735047064,-764.76,0.0001589,2]
[420925568,1776735047073,-500.0,0.0001589,2]
[420925570,1776735047082,-628.08,0.0001589,2]
[420925572,1776735047092,-2269.79,0.0001589,2]
[420925574,1776735047102,-5859.1,0.0001589,2]
[420925576,1776735047112,-2080.85,0.0001589,2]
[420925578,1776735047121,-500.0,0.0001589,2]
[420925580,1776735047131,-500.0,0.0001589,2]
[420925582,1776735047140,-500.0,0.0001589,2]
[420925584,1776735047149,-4245.16,0.0001589,2]
[420925586,1776735047158,-701.39,0.0001589,2]
[420925588,1776735047167,-915.33,0.0001589,2]
[420925590,1776735047175,-3796.29,0.0001589,2]
[420925592,1776735047184,-500.0,0.0001589,2]
[420925594,1776735047194,-23822.54,0.0001589,2]
[420925596,1776735047204,-1937.17,0.0001589,2]
[420925598,1776735047212,-939.33,0.0001589,2]
[420925600,1776735047221,-519.24,0.0001589,2]
[420925601,1776735047231,-2092.51,0.0001589,2]
[420925603,1776735047241,-500.0,0.0001589,2]
[420925605,1776735047250,-500.0,0.0001589,2]
[420925607,1776735047260,-528.23,0.0001589,2]
[420925609,1776735047269,-1690.89,0.0001589,2]
[420925611,1776735047278,-3778.88,0.0001589,2]
[420925613,1776735047287,-2274.82,0.0001589,2]
[420925615,1776735047297,-1209.507,0.0001589,2]
[420925617,1776735047306,-500.0,0.0001589,2]
[420925619,1776735047316,-500.0,0.0001589,2]
[420925621,1776735047325,-500.0,0.0001589,2]
[420925623,1776735047334,-500.0,0.0001589,2]
[420925625,1776735047343,-500.0,0.0001589,2]
[420925627,1776735047353,-500.0,0.0001589,2]
[420925629,1776735047362,-500.0,0.0001589,2]
[420925631,1776735047371,-500.0,0.0001589,2]
[420925633,1776735047380,-500.0,0.0001589,2]
[420925635,1776735047390,-500.0,0.0001589,2]
[420925637,1776735047399,-500.0,0.0001589,2]
[420925639,1776735047408,-500.0,0.0001589,2]
[420925641,1776735047417,-500.0,0.0001589,2]
[420925643,1776735047427,-500.0,0.0001589,2]
[420925645,1776735047436,-500.0,0.0001589,2]
[420925647,1776735047445,-500.0,0.0001589,2]
[420925648,1776735047455,-500.0,0.0001589,2]
[420925650,1776735047464,-500.0,0.0001589,2]
[420925652,1776735047473,-500.0,0.0001589,2]
[420925654,1776735047483,-500.0,0.0001589,2]
[420925656,1776735047492,-500.0,0.0001589,2]
[420925658,1776735047501,-500.0,0.0001589,2]
[420925660,1776735047510,-500.0,0.0001589,2]
[420925662,1776735047520,-500.0,0.0001589,2]
[420925664,1776735047530,-500.0,0.0001589,2]
[420925666,1776735047539,-242.42831785,0.0001589,2]
[420925668,1776735047548,-1140.0,0.0001589,2]
[420925670,1776735047558,-6831.72881926,0.000159,2]
[420925672,1776735047567,-1973.10958968,0.000159,2]
[420925674,1776735047577,-150.0,0.00015902,2]
[420925676,1776735047586,-441.0,0.00015946,2]
[420925678,1776735047596,-184.0,0.00015946,2]
[420925680,1776735047605,-7361.21501514,0.0001597,2]
[420925682,1776735047615,-20285.73206383,0.00016,2]
[420925684,1776735047624,-82810.06177578,0.00016,7]
[420925686,1776735047633,-3000.0,0.00016,2]
[420925688,1776735047643,-218.2214069,0.00016,2]
[420925690,1776735047652,-1005.68385239,0.00016,2]
[420925692,1776735047661,-160.0,0.00016,7]
[420925694,1776735047670,-3000.0,0.0001601,2]
[420925695,1776735047679,-160.0,0.00016018,7]
[420925697,1776735047689,-3000.0,0.0001602,2]
[420925700,1776735047698,-3000.0,0.0001603,2]
[420925701,1776735047708,-3000.0,0.0001604,2]
[420925703,1776735047717,-3000.0,0.0001605,2]
[420925705,1776735047727,-3000.0,0.0001606,2]
[420925708,1776735047737,-5060.50433595,0.0001606,2]
[420925710,1776735047746,-3000.0,0.0001607,2]
[420925711,1776735047754,-155.0,0.0001607,2]
[420925713,1776735047764,-161.77966249,0.00016073,2]
[420925715,1776735047775,-500.0,0.00016073,2]
[420925717,1776735047784,-500.0,0.00016073,2]
[420925719,1776735047793,-500.0,0.00016073,2]
[420925721,1776735047802,-525.12411808,0.00016073,2]
[420925723,1776735047811,-500.0,0.00016073,2]
[420925725,1776735047820,-150.0,0.00016073,2]
[420925727,1776735047829,-300.0,0.00016073,2]
[420925729,1776735047840,-500.0,0.00016073,2]
[420925731,1776735047850,-500.0,0.00016073,2]
[420925733,1776735047859,-500.0,0.00016073,2]
[420925735,1776735047869,-500.0,0.00016073,2]
[420925737,1776735047879,-500.0,0.00016073,2]
[420925738,1776735047888,-500.0,0.00016073,2]
[420925740,1776735047897,-500.0,0.00016073,2]
[420925742,1776735047907,-500.0,0.00016073,2]
[420925744,1776735047917,-500.0,0.00016073,2]
[420925746,1776735047926,-165.83217503,0.00016073,2]
[420925748,1776735047935,-500.0,0.00016073,2]
[420925750,1776735047944,-500.20992683,0.00016073,2]
[420925752,1776735047953,-500.0,0.00016073,2]
[420925754,1776735047962,-500.0,0.00016073,2]
[420925756,1776735047971,-500.2484494,0.00016073,2]
[420925758,1776735047979,-500.0,0.00016073,2]
[420925760,1776735047988,-500.18035605,0.00016073,2]
[420925762,1776735047998,-499.95551522,0.00016073,2]
[420925765,1776735048007,-525.64475062,0.00016073,2]
[420925767,1776735048016,-161.46179752,0.00016073,2]
[420925769,1776735048025,-500.0,0.00016073,2]
[420925770,1776735048034,-246.23095377,0.00016073,2]
[420925772,1776735048045,-168.35236152,0.00016073,2]
[420925774,1776735048054,-500.0,0.00016073,2]
[420925776,1776735048063,-500.0,0.00016073,2]
[420925778,1776735048073,-500.0,0.00016073,2]
[420925780,1776735048082,-500.0,0.00016073,2]
[420925782,1776735048091,-311.57012873,0.00016073,2]
[420925784,1776735048101,-500.0,0.00016073,2]
[420925786,1776735048109,-500.0,0.00016073,2]
[420925788,1776735048119,-500.0,0.00016073,2]
[420925790,1776735048128,-464.35622236,0.00016073,2]
[420925792,1776735048137,-500.0,0.00016073,2]
[420925794,1776735048147,-500.0,0.00016073,2]
[420925796,1776735048156,-500.0,0.00016073,2]
[420925798,1776735048165,-500.0,0.00016073,2]
[420925800,1776735048174,-500.0,0.00016073,2]
[420925801,1776735048183,-530.52152063,0.00016073,2]
[420925803,1776735048192,-500.97431058,0.00016073,2]
[420925804,1776735048202,-178.59647045,0.00016073,2]
[420925805,1776735048211,-500.84599897,0.00016073,2]
[420925806,1776735048220,-500.7829577,0.00016073,2]
[420925807,1776735048228,-500.47010725,0.00016073,2]
[420925808,1776735048238,-160.49596159,0.00016073,2]
[420925809,1776735048247,-3000.0,0.0001608,2]
[420925810,1776735048256,-3000.0,0.0001609,2]
[420925811,1776735048265,-200.0,0.000161,2]
[420925812,1776735048274,-6831.72881926,0.000161,2]
[420925813,1776735048283,-1973.10958968,0.000161,2]
[420925814,1776735048292,-3000.0,0.000161,2]
[420925815,1776735048301,-278948.29293477,0.000161,2]
[420925816,1776735048310,-3000.0,0.0001611,2]
[420925817,1776735048319,-311.64,0.00016116,2]
[420925818,1776735048328,-311.64,0.00016116,2]
[420925819,1776735048337,-3000.0,0.0001612,2]
[420925820,1776735048348,-3000.0,0.0001613,2]
[420925821,1776735048357,-3000.0,0.0001614,2]
[420925822,1776735048366,-3000.0,0.0001615,2]
[420925823,1776735048375,-3000.0,0.0001616,2]
[420925824,1776735048384,-500.0,0.00016164,2]
[420925825,1776735048394,-500.0,0.00016164,2]
[420925826,1776735048403,-500.0,0.00016164,2]
[420925827,1776735048412,-500.0,0.00016164,2]
[420925829,1776735048421,-220.05218368,0.00016164,2]
[420925830,1776735048430,-500.0,0.00016164,2]
[420925831,1776735048439,-500.0,0.00016164,2]
[420925833,1776735048448,-550.2,0.00016164,2]
[420925835,1776735048457,-500.0,0.00016164,2]
[420925836,1776735048466,-500.0,0.00016164,2]
[420925838,1776735048476,-555.17,0.00016164,2]
[420925840,1776735048485,-500.0,0.00016164,2]
[420925842,1776735048495,-500.0,0.00016164,2]
[420925844,1776735048504,-500.0,0.00016164,2]
[420925846,1776735048514,-500.0,0.00016164,2]
[420925848,1776735048524,-566.33,0.00016164,2]
[420925850,1776735048535,-500.0,0.00016164,2]
[420925852,1776735048546,-700.65,0.00016164,2]
[420925854,1776735048557,-663.16,0.00016164,2]
[420925856,1776735048566,-500.0,0.00016164,2]
[420925858,1776735048576,-500.0,0.00016164,2]
[420925860,1776735048585,-1395.49,0.00016164,2]
[420925862,1776735048596,-500.0,0.00016164,2]
[420925864,1776735048607,-500.0,0.00016164,2]
[420925866,1776735048617,-915.61,0.00016164,2]
[420925868,1776735048627,-500.0,0.00016164,2]
[420925870,1776735048636,-500.0,0.00016164,2]
[420925872,1776735048646,-500.0,0.00016164,2]
[420925874,1776735048655,-500.0,0.00016164,2]
[420925876,1776735048665,-500.0,0.00016164,2]
[420925878,1776735048674,-500.0,0.00016164,2]
[420925880,1776735048684,-500.0,0.00016164,2]
[420925882,1776735048694,-500.0,0.00016164,2]
[420925884,1776735048704,-500.0,0.00016164,2]
[420925886,1776735048714,-500.0,0.00016164,2]
[420925888,1776735048723,-500.0,0.00016164,2]
[420925890,1776735048733,-1554.06,0.00016164,2]
[420925892,1776735048743,-500.0,0.00016164,2]
[420925894,1776735048753,-500.0,0.00016164,2]
[420925897,1776735048763,-582.68,0.00016164,2]
[420925899,1776735048772,-5611.23,0.00016164,2]
[420925901,1776735048782,-154.36935446,0.00016164,2]
[420925903,1776735048792,-500.0,0.00016164,2]
[420925905,1776735048802,-8913.81,0.00016164,2]
[420925907,1776735048811,-500.0,0.00016164,2]
[420925908,1776735048820,-500.0,0.00016164,2]
[420925910,1776735048829,-500.0,0.00016164,2]
[420925912,1776735048839,-75.83317625,0.00016164,2]
[420925959,1776735049320,-4424.68490622,8.954e-05,10]
[420925961,1776735049330,-222.36787801,0.00015616,3]
[420925963,1776735049340,-615.57733729,0.00016164,2]
[420925972,1776735049410,223.82400332,0.00026341,120]
[420926021,1776735102495,372.49022816,9.603e-05,2]
[420926022,1776735111512,500.0,9.603e-05,2]
[420926023,1776735111543,219.29342653,9.603e-05,2]
[420926024,1776735138589,255.13,0.00026341,120]
[420926025,1776735144532,229.68450088,0.00026341,120]
[420926026,1776735183127,269.70965763,0.00026341,120]
[420926027,1776735186543,158.67702365,0.00026341,120]
[420926029,1776735386156,764.0,0.00026243,120]
[420926030,1776735441679,3000.0,0.00026243,120]
[420926031,1776735474647,507.9020156,0.00026243,120]
[420926033,1776735768059,1575.19034816,0.00023,120]
[420926099,1776736238916,-1666.4134488,0.00011129,10]
[420926121,1776736239112,-3333.5865512,0.00011129,10]
[420926123,1776736239121,-578.0,0.00011241,2]
[420926125,1776736239131,-161.6753994,0.00011241,2]
[420926127,1776736239140,-200.5543627,0.00011625,2]
[420926129,1776736239149,-6686.2068708,0.00011684,2]
[420926131,1776736239158,-2557.7540212,0.00011981,2]
[420926133,1776736239167,-300.0,0.00012404,2]
[420926135,1776736239176,-277.159,0.00012404,2]
[420926137,1776736239185,-5022.8726423,0.0001254,2]
[420926139,1776736239195,-1733.2911524,0.0001254,2]
[420926142,1776736239206,-3266.7088476,0.0001254,2]
[420926144,1776736239215,-5000.0,0.0001254,2]
[420926146,1776736239224,-5000.0,0.0001254,2]
[420926148,1776736239233,-5000.0,0.0001254,2]
[420926149,1776736239242,-300.0,0.00012543,2]
[420926151,1776736239251,-600.0,0.0001279,2]
[420926153,1776736239261,-1569.19359858,0.000129,2]
[420926155,1776736239270,-160.0,0.00012971,2]
[420926157,1776736239279,-1569.19359852,0.00013506,2]
[420926159,1776736239289,-236.65414798,0.00013625,2]
[420926161,1776736239298,-179.9820018,0.00013699,2]
[420926163,1776736239307,-1000.0,0.00013699,2]
[420926165,1776736239316,-720.0,0.00014069,2]
[420926167,1776736239325,-821.0,0.00014095,2]
[420926169,1776736239334,-821.0,0.00014353,2]
[420926171,1776736239344,-1569.19359852,0.00014571,2]
[420926173,1776736239353,-591.04655756,0.00014699,2]
[420926175,1776736239361,-499.58802872,0.00014798,2]
[420926177,1776736239370,-500.0,0.00014798,2]
[420926179,1776736239379,-500.0,0.00014798,2]
[420926181,1776736239389,-500.0,0.00014798,2]
[420926183,1776736239398,-490.06903129,0.00014798,2]
[420926185,1776736239407,-476.63504568,0.00014798,2]
[420926187,1776736239416,-500.0,0.00014798,2]
[420926189,1776736239425,-500.0,0.00014798,2]
[420926191,1776736239434,-500.0,0.00014798,2]
[420926193,1776736239443,-500.0,0.00014798,2]
[420926195,1776736239452,-92424.63134326,0.00014799,2]
[420926249,1776736240437,-1346.10944076,0.00014799,2]
[420926480,1776736243272,-300.0,0.00014799,2]
[420926481,1776736243283,-3692.82124772,0.00014799,2]
[420926482,1776736243294,-2265.967128,0.00014799,2]
[420926483,1776736243305,-1891.0220345,0.00014799,2]
[420926484,1776736243316,-798.23978973,0.00014799,2]
[420926485,1776736243327,-58121.73965244,0.00014799,2]
[420926486,1776736243338,-500.68,0.00014799,2]
[420926684,1776736246334,-13896.08965803,0.00014799,2]
[420926704,1776736246547,-9229.35898567,0.00014799,2]
[420926705,1776736246602,-27358.18795853,0.00014799,2]
[420931628,1776736569642,500.00723487,0.00026241,120]
[420931629,1776736625775,156.767868,0.00026241,120]
[420931633,1776737280561,1068.96,4.008e-05,2]
[420931634,1776737305364,986.04256658,0.00026241,120]
[420931830,1776737443393,-5000.0,7.375e-05,10]
[420931831,1776737443402,-202.43019248,7.525e-05,2]
[420931832,1776737443412,-526.0,7.525e-05,2]
[420931833,1776737443421,-9808.8128829,7.6e-05,2]
[420931834,1776737443430,-250.93973679,9.29e-05,2]
[420931835,1776737443439,-238.86762713,9.525e-05,2]
[420931836,1776737443448,-275.30506178,0.00011525,2]
[420931837,1776737443457,-736.73922723,0.00013179,2]
[420931838,1776737443469,-336.08419217,0.00013179,2]
[420931839,1776737443477,-648.868,0.00013302,2]
[420931840,1776737443487,-2217.317,0.00013302,2]
[420931841,1776737443496,-311.74249642,0.00013525,2]
[420931842,1776737443506,-500.0,0.00013698,2]
[420931843,1776737443515,-500.0,0.00013698,2]
[420931844,1776737443524,-14.11532256,0.00013699,2]
[420931845,1776737443534,-240.32472087,0.00013699,2]
[420931846,1776737443543,-686.83613533,0.00013699,2]
[420931847,1776737443558,-313.16386467,0.00013699,2]
[420931848,1776737443568,-1000.0,0.00013699,2]
[420931849,1776737443577,-160.0,0.00013917,2]
[420931850,1776737443587,-500.0,0.00014068,2]
[420931851,1776737443595,-243.42367095,0.00014259,2]
[420931852,1776737443605,-883.4068458,0.00014357,2]
[420931853,1776737443615,-608.41462394,0.00014357,2]
[420931855,1776737446648,-378.49685186,0.00014357,2]
[420931856,1776737446658,-435.13793424,0.00014598,2]
[420931857,1776737446667,-465.78051293,0.00014598,2]
[420931858,1776737446676,-500.0,0.00014598,2]
[420931859,1776737446686,-500.0,0.00014598,2]
[420931860,1776737446695,-500.0,0.00014598,2]
[420931861,1776737446705,-500.0,0.00014598,2]
[420931863,1776737446715,-342.51639467,0.00014598,2]
[420931864,1776737446724,-500.0,0.00014598,2]
[420931865,1776737446733,-500.0,0.00014598,2]
[420931866,1776737446742,-372.49022816,0.00014598,2]
[420931867,1776737446751,-500.0,0.00014598,2]
[420931868,1776737446761,-443.68327251,0.00014598,2]
[420931869,1776737446770,-629.31145904,0.00014598,2]
[420931870,1776737446779,-500.0,0.00014598,2]
[420931871,1776737446788,-500.0,0.00014598,2]
[420931872,1776737446797,-500.0,0.00014598,2]
[420931873,1776737446806,-500.0,0.00014598,2]
[420931874,1776737446815,-66710.35931992,0.00014599,2]
[420931879,1776737766562,500.0,0.00026234,120]
[420931880,1776737766957,500.0,0.00026234,120]
[420931881,1776737767198,367.16827451,0.00026234,120]
[420931882,1776737949751,300.0,0.00026234,120]
[420931886,1776738140706,500.0,0.00026239,120]
[420931887,1776738164741,243.03242689,0.00026239,120]
[420931888,1776738164788,198.96301227,0.00026239,120]
[420931889,1776738164836,180.17972222,0.00026239,120]
[420931890,1776738164883,264.13593309,0.00026239,120]
[420931891,1776738164930,243.03242689,0.00026239,120]
[420931892,1776738165055,180.17972222,0.00026239,120]
[420931893,1776738165106,264.13593309,0.00026239,120]
[420931894,1776738165175,243.03242689,0.00026239,120]
[420931895,1776738165359,180.17972222,0.00026239,120]
[420931896,1776738165406,264.13593309,0.00026239,120]
[420931897,1776738165460,243.03242689,0.00026239,120]
[420931898,1776738165959,243.03242689,0.00026239,120]
[420931899,1776738166076,243.03242689,0.00026239,120]
[420931900,1776738166372,243.03242689,0.00026239,120]
[420931902,1776738284554,198.96301226,0.00026239,120]
[420931903,1776738284797,243.03242688,0.00026239,120]
[420931904,1776738359065,196.98,0.00023288,120]
[420931905,1776738456101,500.0,0.00026347,120]
[420931906,1776738456346,500.0,0.00026347,120]
[420931907,1776738456645,500.0,0.00026347,120]
[420931908,1776738456873,500.0,0.00026347,120]
[420931909,1776738457088,500.0,0.00026347,120]
[420931910,1776738457313,500.0,0.00026347,120]
[420931911,1776738457540,500.0,0.00026347,120]
[420931912,1776738457765,500.0,0.00026347,120]
[420931913,1776738457997,500.0,0.00026347,120]
[420931914,1776738458223,500.0,0.00026347,120]
[420931915,1776738458445,500.0,0.00026347,120]
[420931916,1776738458883,500.0,0.00026347,120]
[420931917,1776738458943,500.0,0.00026347,120]
[420931918,1776738459106,500.0,0.00026347,120]
[420931919,1776738459344,500.0,0.00026347,120]
[420931920,1776738459594,500.0,0.00026347,120]
[420931921,1776738459837,500.0,0.00026347,120]
[420931922,1776738460185,500.0,0.00026347,120]
[420931923,1776738460403,500.0,0.00026347,120]